[Event "Titled Tuesday Blitz August 02 Early 2022"]
[White "Boros, Denes"]
[Black "Manukyan, Sargis A."]
[WhiteFideId "722340"]
[BlackFideId "13303970"]
[WhiteElo "2829"]
[BlackElo "2608"]
[Result "1-0"]
[Round "08"]
[TimeControl "180+1"]
[Date "2022.08.02"]
[WhiteClock "0:00:52"]
[BlackClock "0:00:02"]

1. d4 {[%clk 0:03:00]}  Nf6 {[%clk 0:02:57]} 2. Nf3 {[%clk 0:03:01]}  g6 {[%clk 0:02:56]} 3. Nc3 {[%clk 0:03:01]}  d5 {[%clk 0:02:55]} 4. Bg5 {[%clk 0:03:01]}  Bg7 {[%clk 0:02:55]} 5. e3 {[%clk 0:03:01]}  Bg4 {[%clk 0:02:46]} 6. h3 {[%clk 0:02:56]}  Bxf3 {[%clk 0:02:45]} 7. Qxf3 {[%clk 0:02:57]}  c6 {[%clk 0:02:40]} 8. Bd3 {[%clk 0:02:56]}  Nbd7 {[%clk 0:02:39]} 9. O-O {[%clk 0:02:52]}  O-O {[%clk 0:02:22]} 10. e4 {[%clk 0:02:29]}  dxe4 {[%clk 0:02:10]} 11. Nxe4 {[%clk 0:02:29]}  Qb6 {[%clk 0:02:11]} 12. Be3 {[%clk 0:02:22]}  Nd5 {[%clk 0:01:58]} 13. c4 {[%clk 0:02:22]}  Nxe3 {[%clk 0:01:57]} 14. fxe3 {[%clk 0:02:23]}  e5 {[%clk 0:01:53]} 15. c5 {[%clk 0:02:19]}  Qc7 {[%clk 0:01:22]} 16. Qf2 {[%clk 0:02:11]}  exd4 {[%clk 0:01:06]} 17. exd4 {[%clk 0:02:12]}  Rad8 {[%clk 0:00:55]} 18. Kh1 {[%clk 0:02:02]}  Nxc5 {[%clk 0:00:46]} 19. dxc5 {[%clk 0:01:34]}  Rxd3 {[%clk 0:00:45]} 20. Nd6 {[%clk 0:01:34]}  Rd5 {[%clk 0:00:28]} 21. Qc2 {[%clk 0:01:29]}  Bd4 {[%clk 0:00:23]} 22. Ne4 {[%clk 0:01:20]}  f5 {[%clk 0:00:20]} 23. Ng5 {[%clk 0:01:20]}  Qe7 {[%clk 0:00:18]} 24. Nf3 {[%clk 0:01:17]}  Bxc5 {[%clk 0:00:18]} 25. Rae1 {[%clk 0:01:14]}  Qf6 {[%clk 0:00:18]} 26. Qb3 {[%clk 0:01:11]}  Rf7 {[%clk 0:00:17]} 27. Re8+ {[%clk 0:01:08]}  Kg7 {[%clk 0:00:18]} 28. Rfe1 {[%clk 0:01:08]}  Rd8 {[%clk 0:00:17]} 29. R8e6 {[%clk 0:01:05]}  Re7 {[%clk 0:00:03]} 30. Rxf6 {[%clk 0:01:03]}  Rxe1+ {[%clk 0:00:04]} 31. Nxe1 {[%clk 0:01:04]}  Kxf6 {[%clk 0:00:04]} 32. Nf3 {[%clk 0:00:52]}  Rd7 {[%clk 0:00:03]} 33. Qc3+ {[%clk 0:00:51]}  Bd4 {[%clk 0:00:02]} 34. Nxd4 {[%clk 0:00:52]} 1-0


[Site "https://www.chess.com"]

[Event "Titled Tuesday Blitz August 02 Early 2022"]
[White "Gokerkan, Cem Kaan"]
[Black "Sarana, Alexey"]
[WhiteFideId "6336760"]
[BlackFideId "24133795"]
[WhiteElo "2821"]
[BlackElo "2987"]
[Result "1-0"]
[Round "08"]
[TimeControl "180+1"]
[Date "2022.08.02"]
[WhiteClock "0:00:21"]
[BlackClock "0:00:04"]

1. e4 {[%clk 0:02:59]}  c5 {[%clk 0:03:00]} 2. Nf3 {[%clk 0:02:59]}  d6 {[%clk 0:03:01]} 3. d4 {[%clk 0:02:59]}  cxd4 {[%clk 0:03:01]} 4. Nxd4 {[%clk 0:03:00]}  Nf6 {[%clk 0:03:01]} 5. Nc3 {[%clk 0:03:01]}  a6 {[%clk 0:03:02]} 6. Bg5 {[%clk 0:03:02]}  e6 {[%clk 0:03:01]} 7. f4 {[%clk 0:03:02]}  Nbd7 {[%clk 0:02:59]} 8. Qe2 {[%clk 0:02:50]}  Qc7 {[%clk 0:02:55]} 9. O-O-O {[%clk 0:02:46]}  b5 {[%clk 0:02:56]} 10. a3 {[%clk 0:02:45]}  Rb8 {[%clk 0:02:55]} 11. g4 {[%clk 0:02:39]}  b4 {[%clk 0:02:53]} 12. axb4 {[%clk 0:02:40]}  Rxb4 {[%clk 0:02:53]} 13. Bh4 {[%clk 0:02:27]}  Nc5 {[%clk 0:02:37]} 14. Bg2 {[%clk 0:01:51]}  Qb6 {[%clk 0:02:28]} 15. e5 {[%clk 0:01:49]}  dxe5 {[%clk 0:02:22]} 16. Nc6 {[%clk 0:01:49]}  Ncd7 {[%clk 0:01:20]} 17. Nxb4 {[%clk 0:01:37]}  Bxb4 {[%clk 0:00:33]} 18. fxe5 {[%clk 0:01:27]}  Nd5 {[%clk 0:00:31]} 19. Nxd5 {[%clk 0:01:22]}  exd5 {[%clk 0:00:31]} 20. Bxd5 {[%clk 0:01:22]}  Qh6+ {[%clk 0:00:25]} 21. Kb1 {[%clk 0:01:17]}  Qxh4 {[%clk 0:00:25]} 22. Qc4 {[%clk 0:01:07]}  O-O {[%clk 0:00:24]} 23. Qxb4 {[%clk 0:01:06]}  Nxe5 {[%clk 0:00:24]} 24. Rhe1 {[%clk 0:01:03]}  Qf6 {[%clk 0:00:16]} 25. Bb3 {[%clk 0:00:50]}  Bxg4 {[%clk 0:00:14]} 26. Rd5 {[%clk 0:00:49]}  Nf3 {[%clk 0:00:13]} 27. Re4 {[%clk 0:00:26]}  h5 {[%clk 0:00:10]} 28. h3 {[%clk 0:00:24]}  Be6 {[%clk 0:00:10]} 29. Rf4 {[%clk 0:00:22]}  Qg6 {[%clk 0:00:04]} 30. Rxf3 {[%clk 0:00:21]}  Bxd5 {[%clk 0:00:03]} 31. Bxd5 {[%clk 0:00:22]}  Kh8 {[%clk 0:00:04]} 32. Qxf8+ {[%clk 0:00:21]} 1-0


[Site "https://www.chess.com"]

[Event "Titled Tuesday Blitz August 02 Early 2022"]
[White "Gurel, Ediz"]
[Black "Jakubowski, Krzysztof"]
[WhiteFideId "44507356"]
[BlackFideId "1112848"]
[WhiteElo "2825"]
[BlackElo "2595"]
[Result "0-1"]
[Round "08"]
[TimeControl "180+1"]
[Date "2022.08.02"]
[WhiteClock "0:00:12"]
[BlackClock "0:00:10"]

1. e4 {[%clk 0:03:00]}  c6 {[%clk 0:02:58]} 2. Nf3 {[%clk 0:02:57]}  d5 {[%clk 0:02:57]} 3. d3 {[%clk 0:02:58]}  dxe4 {[%clk 0:02:57]} 4. dxe4 {[%clk 0:02:59]}  Qxd1+ {[%clk 0:02:56]} 5. Kxd1 {[%clk 0:03:00]}  Nf6 {[%clk 0:02:56]} 6. Nbd2 {[%clk 0:02:51]}  Nbd7 {[%clk 0:02:32]} 7. Ne1 {[%clk 0:02:41]}  h5 {[%clk 0:02:27]} 8. Nd3 {[%clk 0:02:33]}  h4 {[%clk 0:02:22]} 9. f3 {[%clk 0:02:28]}  Nh5 {[%clk 0:02:19]} 10. Nc4 {[%clk 0:02:27]}  Nb6 {[%clk 0:02:09]} 11. Na5 {[%clk 0:02:20]}  f6 {[%clk 0:02:02]} 12. Be3 {[%clk 0:02:14]}  e5 {[%clk 0:02:00]} 13. c3 {[%clk 0:02:11]}  g5 {[%clk 0:01:59]} 14. Kc2 {[%clk 0:02:09]}  Kd8 {[%clk 0:01:53]} 15. Rd1 {[%clk 0:02:03]}  Kc7 {[%clk 0:01:53]} 16. Nc5 {[%clk 0:01:52]}  Nf4 {[%clk 0:01:27]} 17. Rg1 {[%clk 0:01:33]}  Be7 {[%clk 0:01:23]} 18. g3 {[%clk 0:01:27]}  hxg3 {[%clk 0:01:21]} 19. hxg3 {[%clk 0:01:28]}  Ne6 {[%clk 0:01:11]} 20. Naxb7 {[%clk 0:01:27]}  Rh2+ {[%clk 0:00:53]} 21. Rd2 {[%clk 0:00:49]}  Rxd2+ {[%clk 0:00:49]} 22. Kxd2 {[%clk 0:00:50]}  Nxc5 {[%clk 0:00:40]} 23. Nxc5 {[%clk 0:00:50]}  Bxc5 {[%clk 0:00:26]} 24. Bxc5 {[%clk 0:00:51]}  Be6 {[%clk 0:00:26]} 25. b3 {[%clk 0:00:49]}  Rh8 {[%clk 0:00:24]} 26. Bg2 {[%clk 0:00:29]}  Rh2 {[%clk 0:00:21]} 27. g4 {[%clk 0:00:22]}  a5 {[%clk 0:00:20]} 28. Be7 {[%clk 0:00:14]}  Nd7 {[%clk 0:00:19]} 29. Ke3 {[%clk 0:00:14]}  c5 {[%clk 0:00:16]} 30. Rh1 {[%clk 0:00:01]}  Rxg2 {[%clk 0:00:15]} 31. Rh7 {[%clk 0:00:02]}  Kc6 {[%clk 0:00:14]} 32. Rh6 {[%clk 0:00:02]}  Rxa2 {[%clk 0:00:13]} 33. Bxf6 {[%clk 0:00:03]}  Nxf6 {[%clk 0:00:13]} 34. Rxf6 {[%clk 0:00:03]}  Kd7 {[%clk 0:00:13]} 35. Rg6 {[%clk 0:00:03]}  Bxb3 {[%clk 0:00:13]} 36. Rxg5 {[%clk 0:00:03]}  Ke6 {[%clk 0:00:11]} 37. Rg6+ {[%clk 0:00:04]}  Kf7 {[%clk 0:00:11]} 38. Rc6 {[%clk 0:00:04]}  Bc4 {[%clk 0:00:10]} 39. f4 {[%clk 0:00:02]}  exf4+ {[%clk 0:00:09]} 40. Kxf4 {[%clk 0:00:03]}  Bb3 {[%clk 0:00:06]} 41. Rxc5 {[%clk 0:00:03]}  a4 {[%clk 0:00:06]} 42. g5 {[%clk 0:00:01]}  a3 {[%clk 0:00:06]} 43. Rc7+ {[%clk 0:00:02]}  Kg6 {[%clk 0:00:05]} 44. Rc6+ {[%clk 0:00:02]}  Kg7 {[%clk 0:00:05]} 45. Rc7+ {[%clk 0:00:02]}  Kf8 {[%clk 0:00:05]} 46. g6 {[%clk 0:00:02]}  Rg2 {[%clk 0:00:04]} 47. Rc8+ {[%clk 0:00:01]}  Ke7 {[%clk 0:00:03]} 48. Rc7+ {[%clk 0:00:01]}  Kd6 {[%clk 0:00:03]} 49. Ra7 {[%clk 0:00:02]}  a2 {[%clk 0:00:03]} 50. Ke3 {[%clk 0:00:02]}  Kc5 {[%clk 0:00:03]} 51. Ra5+ {[%clk 0:00:01]}  Kc4 {[%clk 0:00:03]} 52. Ra8 {[%clk 0:00:01]}  Kxc3 {[%clk 0:00:03]} 53. Rc8+ {[%clk 0:00:01]}  Kb2 {[%clk 0:00:03]} 54. Ra8 {[%clk 0:00:01]}  a1=Q {[%clk 0:00:03]} 55. Rxa1 {[%clk 0:00:02]}  Kxa1 {[%clk 0:00:03]} 56. Kf4 {[%clk 0:00:02]}  Kb2 {[%clk 0:00:04]} 57. Kf5 {[%clk 0:00:03]}  Kc3 {[%clk 0:00:05]} 58. e5 {[%clk 0:00:04]}  Kd4 {[%clk 0:00:05]} 59. Kf6 {[%clk 0:00:04]}  Ke4 {[%clk 0:00:05]} 60. g7 {[%clk 0:00:04]}  Bd5 {[%clk 0:00:05]} 61. e6 {[%clk 0:00:04]}  Bxe6 {[%clk 0:00:05]} 62. Kxe6 {[%clk 0:00:05]}  Rxg7 {[%clk 0:00:06]} 63. Kf6 {[%clk 0:00:05]}  Rg4 {[%clk 0:00:07]} 64. Ke6 {[%clk 0:00:06]}  Rf4 {[%clk 0:00:07]} 65. Ke7 {[%clk 0:00:06]}  Rf5 {[%clk 0:00:08]} 66. Ke6 {[%clk 0:00:07]}  Re5+ {[%clk 0:00:08]} 67. Kf6 {[%clk 0:00:08]}  Kd5 {[%clk 0:00:09]} 68. Kf7 {[%clk 0:00:08]}  Kd6 {[%clk 0:00:09]} 69. Kf6 {[%clk 0:00:09]}  Rd5 {[%clk 0:00:09]} 70. Kf7 {[%clk 0:00:10]}  Rf5+ {[%clk 0:00:09]} 71. Kg6 {[%clk 0:00:11]}  Ke6 {[%clk 0:00:10]} 72. Kh7 {[%clk 0:00:12]}  Kf7 {[%clk 0:00:09]} 73. Kh6 {[%clk 0:00:12]}  Re5 {[%clk 0:00:09]} 74. Kh7 {[%clk 0:00:12]}  Rh5# {[%clk 0:00:10]} 0-1


[Site "https://www.chess.com"]

[Event "Titled Tuesday Blitz August 02 Early 2022"]
[White "Harsha Bharathakoti"]
[Black "Nakamura, Hikaru"]
[WhiteFideId "5078776"]
[BlackFideId "2016192"]
[WhiteElo "2876"]
[BlackElo "3204"]
[Result "0-1"]
[Round "08"]
[TimeControl "180+1"]
[Date "2022.08.02"]
[WhiteClock "0:00:02"]
[BlackClock "0:00:05"]

1. d4 {[%clk 0:03:00]}  f5 {[%clk 0:02:58]} 2. Nf3 {[%clk 0:02:57]}  Nf6 {[%clk 0:02:57]} 3. g3 {[%clk 0:02:56]}  g6 {[%clk 0:02:57]} 4. Bg2 {[%clk 0:02:55]}  Bg7 {[%clk 0:02:57]} 5. O-O {[%clk 0:02:56]}  O-O {[%clk 0:02:58]} 6. c4 {[%clk 0:02:56]}  d6 {[%clk 0:02:58]} 7. Nc3 {[%clk 0:02:55]}  c6 {[%clk 0:02:58]} 8. Qb3 {[%clk 0:02:54]}  Kh8 {[%clk 0:02:56]} 9. Bf4 {[%clk 0:02:50]}  Nh5 {[%clk 0:02:53]} 10. Bd2 {[%clk 0:02:24]}  e5 {[%clk 0:02:49]} 11. dxe5 {[%clk 0:02:20]}  dxe5 {[%clk 0:02:49]} 12. Bg5 {[%clk 0:02:14]}  Qc7 {[%clk 0:02:37]} 13. Rae1 {[%clk 0:01:54]}  e4 {[%clk 0:02:18]} 14. Nh4 {[%clk 0:01:53]}  Na6 {[%clk 0:01:47]} 15. Rd1 {[%clk 0:01:48]}  Be6 {[%clk 0:01:44]} 16. Qc2 {[%clk 0:01:30]}  Rae8 {[%clk 0:01:35]} 17. b3 {[%clk 0:01:27]}  Qf7 {[%clk 0:01:27]} 18. Qc1 {[%clk 0:01:22]}  Bf6 {[%clk 0:01:15]} 19. Na4 {[%clk 0:01:08]}  Qe7 {[%clk 0:01:09]} 20. Bxf6+ {[%clk 0:01:07]}  Qxf6 {[%clk 0:01:09]} 21. Qh6 {[%clk 0:00:42]}  g5 {[%clk 0:00:37]} 22. Qxh5 {[%clk 0:00:29]}  Bf7 {[%clk 0:00:37]} 23. Ng6+ {[%clk 0:00:21]}  Bxg6 {[%clk 0:00:37]} 24. Qh6 {[%clk 0:00:22]}  b5 {[%clk 0:00:38]} 25. cxb5 {[%clk 0:00:09]}  cxb5 {[%clk 0:00:38]} 26. Rd7 {[%clk 0:00:06]}  bxa4 {[%clk 0:00:38]} 27. Rfd1 {[%clk 0:00:07]}  Nc5 {[%clk 0:00:34]} 28. Rxa7 {[%clk 0:00:04]}  axb3 {[%clk 0:00:19]} 29. axb3 {[%clk 0:00:05]}  Rf7 {[%clk 0:00:13]} 30. Rxf7 {[%clk 0:00:03]}  Qxf7 {[%clk 0:00:14]} 31. Qxg5 {[%clk 0:00:04]}  Qxb3 {[%clk 0:00:15]} 32. Qf6+ {[%clk 0:00:03]}  Kg8 {[%clk 0:00:15]} 33. Rd6 {[%clk 0:00:02]}  Qf7 {[%clk 0:00:14]} 34. Qd4 {[%clk 0:00:02]}  Ne6 {[%clk 0:00:14]} 35. Qd5 {[%clk 0:00:02]}  Nf8 {[%clk 0:00:13]} 36. Qd4 {[%clk 0:00:02]}  Qg7 {[%clk 0:00:12]} 37. Qd5+ {[%clk 0:00:02]}  Kh8 {[%clk 0:00:13]} 38. e3 {[%clk 0:00:02]}  Qe5 {[%clk 0:00:12]} 39. Qd2 {[%clk 0:00:02]}  Rb8 {[%clk 0:00:11]} 40. Bf1 {[%clk 0:00:03]}  Ne6 {[%clk 0:00:11]} 41. h4 {[%clk 0:00:02]}  Nf8 {[%clk 0:00:08]} 42. Bc4 {[%clk 0:00:02]}  Rb2 {[%clk 0:00:06]} 43. Qd1 {[%clk 0:00:02]}  Bh5 {[%clk 0:00:05]} 44. Qxh5 {[%clk 0:00:01]}  Rb1+ {[%clk 0:00:05]} 45. Kg2 {[%clk 0:00:01]}  Qa1 {[%clk 0:00:03]} 46. Qf7 {[%clk 0:00:01]}  Rg1+ {[%clk 0:00:03]} 47. Kh2 {[%clk 0:00:01]}  Rh1+ {[%clk 0:00:04]} 48. Kg2 {[%clk 0:00:02]}  Qg1# {[%clk 0:00:05]} 0-1


[Site "https://www.chess.com"]

[Event "Titled Tuesday Blitz August 02 Early 2022"]
[White "Kevlishvili, Robby"]
[Black "Lobanov, Sergei"]
[WhiteFideId "1040634"]
[BlackFideId "24183750"]
[WhiteElo "2926"]
[BlackElo "2809"]
[Result "0-1"]
[Round "08"]
[TimeControl "180+1"]
[Date "2022.08.02"]
[WhiteClock "0:00:14"]
[BlackClock "0:00:06"]

1. e4 {[%clk 0:03:00]}  e5 {[%clk 0:03:00]} 2. Nf3 {[%clk 0:03:01]}  Nc6 {[%clk 0:03:00]} 3. Bb5 {[%clk 0:03:01]}  a6 {[%clk 0:03:01]} 4. Ba4 {[%clk 0:03:01]}  Bc5 {[%clk 0:03:01]} 5. c3 {[%clk 0:02:58]}  Ba7 {[%clk 0:03:01]} 6. O-O {[%clk 0:02:54]}  Nge7 {[%clk 0:03:00]} 7. d4 {[%clk 0:02:50]}  Ng6 {[%clk 0:03:00]} 8. Be3 {[%clk 0:02:48]}  O-O {[%clk 0:02:57]} 9. Nbd2 {[%clk 0:02:47]}  exd4 {[%clk 0:02:57]} 10. cxd4 {[%clk 0:02:46]}  d5 {[%clk 0:02:58]} 11. Bxc6 {[%clk 0:02:41]}  bxc6 {[%clk 0:02:59]} 12. e5 {[%clk 0:02:38]}  f6 {[%clk 0:02:59]} 13. exf6 {[%clk 0:02:35]}  Qxf6 {[%clk 0:02:59]} 14. Rc1 {[%clk 0:02:32]}  Bd7 {[%clk 0:02:56]} 15. h3 {[%clk 0:02:23]}  Bb6 {[%clk 0:02:53]} 16. Nh2 {[%clk 0:01:49]}  Nh4 {[%clk 0:02:27]} 17. Ng4 {[%clk 0:01:36]}  Qg6 {[%clk 0:02:25]} 18. g3 {[%clk 0:01:35]}  Rae8 {[%clk 0:01:57]} 19. Kh2 {[%clk 0:01:27]}  Nf5 {[%clk 0:01:44]} 20. Nf3 {[%clk 0:01:14]}  Nxe3 {[%clk 0:01:43]} 21. Nxe3 {[%clk 0:01:10]}  Qh5 {[%clk 0:01:41]} 22. Ng1 {[%clk 0:01:05]}  Qf7 {[%clk 0:01:39]} 23. Kg2 {[%clk 0:01:02]}  Re4 {[%clk 0:01:34]} 24. Nc2 {[%clk 0:00:44]}  c5 {[%clk 0:01:25]} 25. dxc5 {[%clk 0:00:45]}  Bxc5 {[%clk 0:01:26]} 26. Ne1 {[%clk 0:00:42]}  Bd6 {[%clk 0:00:48]} 27. Nd3 {[%clk 0:00:37]}  c6 {[%clk 0:00:48]} 28. Nc5 {[%clk 0:00:32]}  Bxc5 {[%clk 0:00:22]} 29. Rxc5 {[%clk 0:00:33]}  h5 {[%clk 0:00:22]} 30. Rc3 {[%clk 0:00:29]}  h4 {[%clk 0:00:21]} 31. Rf3 {[%clk 0:00:27]}  Qe7 {[%clk 0:00:20]} 32. Rxf8+ {[%clk 0:00:24]}  Qxf8 {[%clk 0:00:21]} 33. g4 {[%clk 0:00:20]}  Qf4 {[%clk 0:00:18]} 34. Nf3 {[%clk 0:00:18]}  d4 {[%clk 0:00:13]} 35. Qb3+ {[%clk 0:00:16]}  Be6 {[%clk 0:00:10]} 36. Qb6 {[%clk 0:00:16]}  Bd5 {[%clk 0:00:10]} 37. Qd8+ {[%clk 0:00:16]}  Kf7 {[%clk 0:00:06]} 38. Ng5+ {[%clk 0:00:14]}  Qxg5 {[%clk 0:00:06]} 0-1


[Site "https://www.chess.com"]

[Event "Titled Tuesday Blitz August 02 Early 2022"]
[White "Mardov, Dimitar"]
[Black "Nguyen, Quoc Hy"]
[WhiteFideId "30919495"]
[BlackFideId "12410853"]
[WhiteElo "2858"]
[BlackElo "2668"]
[Result "1/2-1/2"]
[Round "08"]
[TimeControl "180+1"]
[Date "2022.08.02"]
[WhiteClock "0:00:12"]
[BlackClock "0:00:10"]

1. e4 {[%clk 0:03:00]}  c5 {[%clk 0:02:59]} 2. Nf3 {[%clk 0:03:01]}  Nc6 {[%clk 0:02:57]} 3. d4 {[%clk 0:03:01]}  cxd4 {[%clk 0:02:58]} 4. Nxd4 {[%clk 0:03:02]}  e5 {[%clk 0:02:58]} 5. Nb5 {[%clk 0:03:02]}  d6 {[%clk 0:02:58]} 6. N1c3 {[%clk 0:03:03]}  a6 {[%clk 0:02:57]} 7. Na3 {[%clk 0:03:03]}  Be7 {[%clk 0:02:58]} 8. Nd5 {[%clk 0:03:03]}  Nf6 {[%clk 0:02:56]} 9. Nxf6+ {[%clk 0:03:00]}  Bxf6 {[%clk 0:02:56]} 10. Nc4 {[%clk 0:03:00]}  Be7 {[%clk 0:02:53]} 11. c3 {[%clk 0:03:00]}  O-O {[%clk 0:02:53]} 12. Ne3 {[%clk 0:02:59]}  Bg5 {[%clk 0:02:50]} 13. Be2 {[%clk 0:02:58]}  f5 {[%clk 0:02:48]} 14. exf5 {[%clk 0:02:48]}  Bxe3 {[%clk 0:02:45]} 15. Bxe3 {[%clk 0:02:49]}  Bxf5 {[%clk 0:02:45]} 16. Qb3+ {[%clk 0:02:46]}  Kh8 {[%clk 0:02:41]} 17. O-O {[%clk 0:02:43]}  Qe7 {[%clk 0:02:35]} 18. Rad1 {[%clk 0:02:38]}  Be6 {[%clk 0:02:18]} 19. Qa3 {[%clk 0:02:27]}  Rad8 {[%clk 0:02:15]} 20. Bb6 {[%clk 0:02:26]}  Rd7 {[%clk 0:02:15]} 21. c4 {[%clk 0:02:24]}  h6 {[%clk 0:01:58]} 22. Qg3 {[%clk 0:02:18]}  Rf5 {[%clk 0:01:51]} 23. f4 {[%clk 0:02:11]}  Qf6 {[%clk 0:01:37]} 24. fxe5 {[%clk 0:01:56]}  dxe5 {[%clk 0:01:38]} 25. Bd3 {[%clk 0:01:40]}  Rf4 {[%clk 0:01:35]} 26. b3 {[%clk 0:01:12]}  Bg4 {[%clk 0:01:20]} 27. Rde1 {[%clk 0:01:04]}  Nb4 {[%clk 0:00:52]} 28. Rxf4 {[%clk 0:00:39]}  Qxb6+ {[%clk 0:00:50]} 29. Qe3 {[%clk 0:00:23]}  Qxe3+ {[%clk 0:00:42]} 30. Rxe3 {[%clk 0:00:24]}  Rxd3 {[%clk 0:00:42]} 31. Rxd3 {[%clk 0:00:14]}  exf4 {[%clk 0:00:42]} 32. Rd8+ {[%clk 0:00:14]}  Kh7 {[%clk 0:00:42]} 33. Rb8 {[%clk 0:00:13]}  Nxa2 {[%clk 0:00:34]} 34. Rxb7 {[%clk 0:00:13]}  a5 {[%clk 0:00:10]} 35. Rb5 {[%clk 0:00:10]}  Bd1 {[%clk 0:00:02]} 36. c5 {[%clk 0:00:08]}  Nc3 {[%clk 0:00:02]} 37. Rxa5 {[%clk 0:00:07]}  Bxb3 {[%clk 0:00:03]} 38. c6 {[%clk 0:00:07]}  Be6 {[%clk 0:00:02]} 39. c7 {[%clk 0:00:06]}  Bc8 {[%clk 0:00:03]} 40. Ra8 {[%clk 0:00:06]}  Bf5 {[%clk 0:00:02]} 41. Rf8 {[%clk 0:00:06]}  Bd7 {[%clk 0:00:02]} 42. c8=Q {[%clk 0:00:04]}  Bxc8 {[%clk 0:00:03]} 43. Rxc8 {[%clk 0:00:05]}  Nd5 {[%clk 0:00:03]} 44. Rc5 {[%clk 0:00:05]}  Ne7 {[%clk 0:00:03]} 45. Kf2 {[%clk 0:00:05]}  Ng6 {[%clk 0:00:02]} 46. Kf3 {[%clk 0:00:05]}  Kg8 {[%clk 0:00:02]} 47. Rc7 {[%clk 0:00:04]}  Kh7 {[%clk 0:00:02]} 48. Kg4 {[%clk 0:00:04]}  Kg8 {[%clk 0:00:03]} 49. Kf5 {[%clk 0:00:04]}  Nh4+ {[%clk 0:00:03]} 50. Kxf4 {[%clk 0:00:04]}  Nxg2+ {[%clk 0:00:04]} 51. Kg4 {[%clk 0:00:04]}  Ne3+ {[%clk 0:00:04]} 52. Kh5 {[%clk 0:00:03]}  Nd5 {[%clk 0:00:04]} 53. Ra7 {[%clk 0:00:02]}  Kh7 {[%clk 0:00:04]} 54. Kg4 {[%clk 0:00:03]}  Nf6+ {[%clk 0:00:05]} 55. Kf5 {[%clk 0:00:03]}  Ng8 {[%clk 0:00:05]} 56. Rc7 {[%clk 0:00:01]}  Nf6 {[%clk 0:00:05]} 57. h3 {[%clk 0:00:01]}  Ne8 {[%clk 0:00:05]} 58. Ra7 {[%clk 0:00:01]}  Nd6+ {[%clk 0:00:06]} 59. Kf4 {[%clk 0:00:02]}  Ne8 {[%clk 0:00:06]} 60. Re7 {[%clk 0:00:03]}  Nf6 {[%clk 0:00:06]} 61. Rb7 {[%clk 0:00:03]}  Nd5+ {[%clk 0:00:06]} 62. Ke5 {[%clk 0:00:04]}  Nf6 {[%clk 0:00:06]} 63. Kf5 {[%clk 0:00:04]}  Nh5 {[%clk 0:00:06]} 64. h4 {[%clk 0:00:04]}  Nf6 {[%clk 0:00:06]} 65. Ke6 {[%clk 0:00:04]}  Kg6 {[%clk 0:00:06]} 66. Rb5 {[%clk 0:00:04]}  Ng4 {[%clk 0:00:05]} 67. h5+ {[%clk 0:00:03]}  Kh7 {[%clk 0:00:05]} 68. Kf7 {[%clk 0:00:03]}  Nf6 {[%clk 0:00:05]} 69. Rf5 {[%clk 0:00:02]}  Kh8 {[%clk 0:00:06]} 70. Kg6 {[%clk 0:00:02]}  Kg8 {[%clk 0:00:06]} 71. Re5 {[%clk 0:00:02]}  Kf8 {[%clk 0:00:05]} 72. Rc5 {[%clk 0:00:02]}  Ne8 {[%clk 0:00:04]} 73. Rc8 {[%clk 0:00:02]}  Ke7 {[%clk 0:00:04]} 74. Ra8 {[%clk 0:00:03]}  Kd7 {[%clk 0:00:05]} 75. Ra7+ {[%clk 0:00:02]}  Ke6 {[%clk 0:00:05]} 76. Ra6+ {[%clk 0:00:02]}  Ke7 {[%clk 0:00:05]} 77. Ra5 {[%clk 0:00:02]}  Ke6 {[%clk 0:00:05]} 78. Rf5 {[%clk 0:00:02]}  Ke7 {[%clk 0:00:05]} 79. Rf7+ {[%clk 0:00:02]}  Ke6 {[%clk 0:00:06]} 80. Rb7 {[%clk 0:00:03]}  Kd6 {[%clk 0:00:01]} 81. Kf7 {[%clk 0:00:02]}  Nf6 {[%clk 0:00:02]} 82. Rb6+ {[%clk 0:00:02]}  Ke5 {[%clk 0:00:02]} 83. Kxg7 {[%clk 0:00:02]}  Nxh5+ {[%clk 0:00:02]} 84. Kxh6 {[%clk 0:00:02]}  Nf4 {[%clk 0:00:03]} 85. Kg5 {[%clk 0:00:02]}  Nd5 {[%clk 0:00:03]} 86. Rb5 {[%clk 0:00:02]}  Kd4 {[%clk 0:00:04]} 87. Rb1 {[%clk 0:00:02]}  Ne3 {[%clk 0:00:04]} 88. Kf4 {[%clk 0:00:02]}  Nd5+ {[%clk 0:00:05]} 89. Kf5 {[%clk 0:00:02]}  Nc3 {[%clk 0:00:05]} 90. Rf1 {[%clk 0:00:01]}  Nd5 {[%clk 0:00:04]} 91. Ke6 {[%clk 0:00:01]}  Ne3 {[%clk 0:00:04]} 92. Rf4+ {[%clk 0:00:01]}  Kd3 {[%clk 0:00:05]} 93. Ke5 {[%clk 0:00:02]}  Nc4+ {[%clk 0:00:06]} 94. Kd5 {[%clk 0:00:02]}  Ne3+ {[%clk 0:00:06]} 95. Kc5 {[%clk 0:00:03]}  Nc2 {[%clk 0:00:06]} 96. Rf3+ {[%clk 0:00:03]}  Ke4 {[%clk 0:00:07]} 97. Rh3 {[%clk 0:00:03]}  Ne3 {[%clk 0:00:07]} 98. Kd6 {[%clk 0:00:02]}  Nf5+ {[%clk 0:00:07]} 99. Ke6 {[%clk 0:00:03]}  Nd4+ {[%clk 0:00:07]} 100. Kf6 {[%clk 0:00:03]}  Nf3 {[%clk 0:00:08]} 101. Rg3 {[%clk 0:00:03]}  Nd4 {[%clk 0:00:07]} 102. Rg4+ {[%clk 0:00:03]}  Kd3 {[%clk 0:00:08]} 103. Ke5 {[%clk 0:00:04]}  Nf3+ {[%clk 0:00:08]} 104. Kd5 {[%clk 0:00:04]}  Ke3 {[%clk 0:00:08]} 105. Rc4 {[%clk 0:00:04]}  Nd2 {[%clk 0:00:08]} 106. Rc3+ {[%clk 0:00:05]}  Ke2 {[%clk 0:00:09]} 107. Kd4 {[%clk 0:00:05]}  Nf3+ {[%clk 0:00:09]} 108. Ke4 {[%clk 0:00:06]}  Nd2+ {[%clk 0:00:09]} 109. Kf4 {[%clk 0:00:06]}  Nf1 {[%clk 0:00:07]} 110. Rc2+ {[%clk 0:00:06]}  Kd3 {[%clk 0:00:07]} 111. Rf2 {[%clk 0:00:06]}  Nd2 {[%clk 0:00:07]} 112. Ke5 {[%clk 0:00:07]}  Nc4+ {[%clk 0:00:07]} 113. Kd5 {[%clk 0:00:07]}  Ne3+ {[%clk 0:00:08]} 114. Kc5 {[%clk 0:00:07]}  Nc2 {[%clk 0:00:07]} 115. Rf3+ {[%clk 0:00:07]}  Ke4 {[%clk 0:00:07]} 116. Rh3 {[%clk 0:00:07]}  Ne3 {[%clk 0:00:07]} 117. Rh4+ {[%clk 0:00:08]}  Kd3 {[%clk 0:00:07]} 118. Rd4+ {[%clk 0:00:07]}  Ke2 {[%clk 0:00:08]} 119. Re4 {[%clk 0:00:08]}  Kd3 {[%clk 0:00:07]} 120. Re8 {[%clk 0:00:09]}  Nc2 {[%clk 0:00:07]} 121. Kd5 {[%clk 0:00:09]}  Ne3+ {[%clk 0:00:07]} 122. Ke5 {[%clk 0:00:10]}  Nc4+ {[%clk 0:00:07]} 123. Kf4 {[%clk 0:00:10]}  Kd4 {[%clk 0:00:07]} 124. Rd8+ {[%clk 0:00:10]}  Kc5 {[%clk 0:00:07]} 125. Ke4 {[%clk 0:00:11]}  Nd6+ {[%clk 0:00:08]} 126. Kd3 {[%clk 0:00:11]}  Kd5 {[%clk 0:00:08]} 127. Rh8 {[%clk 0:00:12]}  Ke5 {[%clk 0:00:08]} 128. Rh5+ {[%clk 0:00:13]}  Ke6 {[%clk 0:00:08]} 129. Kd4 {[%clk 0:00:13]}  Nf5+ {[%clk 0:00:09]} 130. Kc5 {[%clk 0:00:12]}  Ke5 {[%clk 0:00:09]} 131. Kc6 {[%clk 0:00:12]}  Ke4 {[%clk 0:00:09]} 132. Rg5 {[%clk 0:00:12]}  Nd4+ {[%clk 0:00:10]} 133. Kd6 {[%clk 0:00:12]}  Nf5+ {[%clk 0:00:10]} 134. Ke6 {[%clk 0:00:12]} 1/2-1/2


[Site "https://www.chess.com"]